fUSD/lending_fUSD_20250515
["ID","MTS","AMOUNT","RATE_DAILY","PERIOD"]
[361142828,1747303837958,-380.7477114,0.0001138,2]
[361142830,1747303837968,-400.0,0.0001138,2]
[361142831,1747303837978,-400.0,0.0001138,2]
[361142833,1747303837988,-459.36,0.0001138,2]
[361142835,1747303837998,-400.0,0.0001138,2]
[361142837,1747303838007,-400.0,0.0001138,2]
[361142838,1747303838016,-571.12,0.0001138,2]
[361142839,1747303838025,-91.9722886,0.0001138,2]
[361142843,1747303838193,-602.2877114,0.0001138,2]
[361142845,1747303838203,-2020.98687175,0.0001138,2]
[361142847,1747303838213,-400.0,0.0001138,2]
[361142849,1747303838222,-400.0,0.0001138,2]
[361142851,1747303838231,-400.0,0.0001138,2]
[361142853,1747303838240,-400.0,0.0001138,2]
[361142855,1747303838249,-400.0,0.0001138,2]
[361142857,1747303838258,-400.0,0.0001138,2]
[361142859,1747303838268,-400.0,0.0001138,2]
[361142861,1747303838277,-506.79,0.0001138,2]
[361142863,1747303838286,-400.0,0.0001138,2]
[361142865,1747303838295,-400.0,0.0001138,2]
[361142867,1747303838304,-400.0,0.0001138,2]
[361142869,1747303838313,-400.0,0.0001138,2]
[361142871,1747303838322,-400.0,0.0001138,2]
[361142873,1747303838332,-400.0,0.0001138,2]
[361142875,1747303838341,-414.02129001,0.0001138,2]
[361142877,1747303838351,-400.0,0.0001138,2]
[361142879,1747303838360,-400.0,0.0001138,2]
[361142881,1747303838371,-400.0,0.0001138,2]
[361142883,1747303838380,-400.0,0.0001138,2]
[361142885,1747303838390,-400.0,0.0001138,2]
[361142887,1747303838399,-400.0,0.0001138,2]
[361142889,1747303838408,-400.0,0.0001138,2]
[361142891,1747303838418,-400.0,0.0001138,2]
[361142892,1747303838427,-400.0,0.0001138,2]
[361142895,1747303838439,-400.0,0.0001138,2]
[361142897,1747303838453,-571.12,0.0001138,2]
[361142899,1747303838466,-400.0,0.0001138,2]
[361142901,1747303838475,-400.0,0.0001138,2]
[361142903,1747303838484,-633.0,0.0001138,2]
[361142905,1747303838494,-193.95989712,0.0001138,2]
[361142907,1747303838503,-400.0,0.0001138,2]
[361142909,1747303838512,-400.0,0.0001138,2]
[361142912,1747303838530,-544.72,0.0001138,2]
[361142914,1747303838540,-400.0,0.0001138,2]
[361142916,1747303838551,-400.0,0.0001138,2]
[361142918,1747303838563,-502.99,0.0001138,2]
[361142920,1747303838577,-913.71,0.0001138,2]
[361142921,1747303838588,-400.0,0.0001138,2]
[361142923,1747303838597,-400.0,0.0001138,2]
[361142925,1747303838609,-400.0,0.0001138,2]
[361142928,1747303838618,-400.0,0.0001138,2]
[361142929,1747303838630,-590.49,0.0001138,2]
[361142932,1747303838640,-781.53,0.0001138,2]
[361142934,1747303838649,-505.38,0.0001138,2]
[361142936,1747303838659,-400.0,0.0001138,2]
[361142938,1747303838668,-621.52,0.0001138,2]
[361142940,1747303838679,-543.01,0.0001138,2]
[361142942,1747303838688,-491.31,0.0001138,2]
[361142944,1747303838697,-500.64,0.0001138,2]
[361142946,1747303838707,-400.0,0.0001138,2]
[361142948,1747303838718,-786.29,0.0001138,2]
[361142950,1747303838731,-400.0,0.0001138,2]
[361142952,1747303838739,-718.85,0.0001138,2]
[361142954,1747303838749,-400.0,0.0001138,2]
[361142956,1747303838759,-491.29,0.0001138,2]
[361142958,1747303838770,-400.0,0.0001138,2]
[361142992,1747303839071,-400.0,0.0001138,2]
[361142994,1747303839082,-400.0,0.0001138,2]
[361142996,1747303839091,-400.0,0.0001138,2]
[361142998,1747303839101,-1229.32,0.0001138,2]
[361143000,1747303839111,-402.34,0.0001138,2]
[361143002,1747303839121,-756.63,0.0001138,2]
[361143004,1747303839130,-400.0,0.0001138,2]
[361143006,1747303839139,-801.4,0.0001138,2]
[361143008,1747303839148,-400.0,0.0001138,2]
[361143010,1747303839158,-400.0,0.0001138,2]
[361143012,1747303839167,-400.0,0.0001138,2]
[361143014,1747303839176,-400.0,0.0001138,2]
[361143016,1747303839186,-655.54,0.0001138,2]
[361143018,1747303839195,-1029.61,0.0001138,2]
[361143020,1747303839204,-466.09,0.0001138,2]
[361143022,1747303839213,-400.0,0.0001138,2]
[361143024,1747303839223,-400.0,0.0001138,2]
[361143026,1747303839232,-747.41,0.0001138,2]
[361143028,1747303839241,-400.0,0.0001138,2]
[361143030,1747303839251,-400.0,0.0001138,2]
[361143032,1747303839261,-400.0,0.0001138,2]
[361143034,1747303839270,-400.0,0.0001138,2]
[361143036,1747303839279,-400.0,0.0001138,2]
[361143038,1747303839289,-413.2842714,0.0001138,2]
[361143040,1747303839299,-400.0,0.0001138,2]
[361143042,1747303839308,-200.0,0.00011401,2]
[361143044,1747303839317,-572.99350179,0.00011433,2]
[361143046,1747303839327,-420.0,0.00011466,2]
[361143048,1747303839336,-1680.0,0.00011471,2]
[361143050,1747303839346,-896.21,0.00011507,2]
[361143052,1747303839355,-402.49715258,0.00011532,2]
[361143054,1747303839365,-400.0,0.00011532,2]
[361143056,1747303839374,-400.0,0.00011532,2]
[361143058,1747303839384,-400.0,0.00011533,2]
[361143060,1747303839393,-400.0,0.00011533,2]
[361143062,1747303839402,-400.0,0.00011533,2]
[361143064,1747303839411,-400.0,0.00011533,2]
[361143066,1747303839422,-400.0,0.00011533,2]
[361143068,1747303839432,-400.0,0.00011533,2]
[361143070,1747303839441,-612.36,0.00011533,2]
[361143072,1747303839451,-400.0,0.00011533,2]
[361143074,1747303839460,-400.0,0.00011533,2]
[361143076,1747303839472,-400.0,0.00011533,2]
[361143078,1747303839481,-400.0,0.00011533,2]
[361143080,1747303839490,-1573.28,0.00011533,2]
[361143082,1747303839500,-1087.1,0.00011533,2]
[361143084,1747303839509,-669.28,0.00011533,2]
[361143086,1747303839518,-400.0,0.00011533,2]
[361143088,1747303839528,-400.0,0.00011533,2]
[361143090,1747303839538,-400.0,0.00011533,2]
[361143092,1747303839549,-661.14,0.00011533,2]
[361143094,1747303839558,-400.0,0.00011533,2]
[361143096,1747303839567,-400.0,0.00011533,2]
[361143098,1747303839576,-400.0,0.00011533,2]
[361143100,1747303839585,-400.0,0.00011533,2]
[361143102,1747303839595,-400.0,0.00011533,2]
[361143104,1747303839606,-1134.62,0.00011533,2]
[361143106,1747303839616,-465.65,0.00011533,2]
[361143108,1747303839625,-677.95,0.00011533,2]
[361143110,1747303839635,-400.0,0.00011533,2]
[361143112,1747303839644,-1263.54,0.00011533,2]
[361143114,1747303839653,-500.0,0.00011533,2]
[361143116,1747303839663,-400.0,0.00011533,2]
[361143118,1747303839674,-467.54,0.00011533,2]
[361143120,1747303839683,-1147.02,0.00011533,2]
[361143122,1747303839696,-843.1,0.00011533,2]
[361143124,1747303839706,-681.57,0.00011533,2]
[361143126,1747303839716,-400.0,0.00011533,2]
[361143129,1747303839730,-400.0,0.00011533,2]
[361143131,1747303839740,-820.19,0.00011533,2]
[361143133,1747303839749,-5000.0,0.00011534,2]
[361143135,1747303839759,-12369.63384873,0.00011534,2]
[361143136,1747303839769,-400.0,0.00011534,2]
[361143139,1747303839779,-400.0,0.00011534,2]
[361143141,1747303839788,-400.0,0.00011534,2]
[361143143,1747303839800,-400.0,0.00011534,2]
[361143145,1747303839812,-556.25,0.00011534,2]
[361143147,1747303839822,-400.0,0.00011534,2]
[361143149,1747303839832,-400.0,0.00011534,2]
[361143151,1747303839842,-400.0,0.00011534,2]
[361143153,1747303839851,-950.91,0.00011534,2]
[361143155,1747303839861,-400.0,0.00011534,2]
[361143157,1747303839870,-400.0,0.00011534,2]
[361143159,1747303839879,-400.0,0.00011534,2]
[361143161,1747303839889,-600.22,0.00011534,2]
[361143163,1747303839899,-774.43983874,0.00011534,2]
[361143165,1747303839908,-400.0,0.00011534,2]
[361143167,1747303839918,-432.1224313,0.00011534,2]
[361143169,1747303839927,-300.0,0.00011534,2]
[361143171,1747303839937,-400.0,0.00011534,2]
[361143173,1747303839947,-400.0,0.00011534,2]
[361143175,1747303839956,-489.54,0.00011534,2]
[361143177,1747303839967,-400.0,0.00011534,2]
[361143179,1747303839976,-1326.78,0.00011534,2]
[361143181,1747303839986,-2767.22,0.00011534,2]
[361143183,1747303839995,-400.0,0.00011534,2]
[361143185,1747303840005,-400.0,0.00011534,2]
[361143187,1747303840015,-400.0,0.00011534,2]
[361143189,1747303840024,-403.11696858,0.00011534,2]
[361143191,1747303840033,-3207.2,0.00011534,2]
[361143193,1747303840043,-595.06,0.00011534,2]
[361143195,1747303840052,-170.520578,0.00011534,2]
[361143197,1747303840062,-166.151036,0.00011534,2]
[361143199,1747303840072,-400.0,0.00011534,2]
[361143201,1747303840082,-3501.702089,0.00011534,2]
[361143203,1747303840091,-419.4,0.00011534,2]
[361143205,1747303840101,-393.535554,0.00011534,2]
[361143207,1747303840110,-567.41,0.00011534,2]
[361143209,1747303840120,-400.0,0.00011534,2]
[361143211,1747303840129,-400.0,0.00011534,2]
[361143213,1747303840139,-400.0,0.00011534,2]
[361143215,1747303840150,-415.88,0.00011534,2]
[361143217,1747303840160,-400.0,0.00011534,2]
[361143219,1747303840170,-400.0,0.00011534,2]
[361143222,1747303840180,-400.0,0.00011534,2]
[361143224,1747303840190,-335.91884,0.00011534,2]
[361143226,1747303840200,-552.08,0.00011534,2]
[361143228,1747303840210,-400.0,0.00011534,2]
[361143230,1747303840223,-2410.7,0.00011534,2]
[361143232,1747303840233,-400.0,0.00011534,2]
[361143234,1747303840243,-401.19380171,0.00011534,2]
[361143236,1747303840253,-400.0,0.00011534,2]
[361143238,1747303840262,-400.0,0.00011534,2]
[361143240,1747303840272,-2063.91,0.00011534,2]
[361143242,1747303840281,-400.0,0.00011534,2]
[361143244,1747303840292,-11873.1082,0.00011535,2]
[361143246,1747303840302,-587.047,0.00011535,2]
[361143248,1747303840311,-189.829,0.00011569,2]
[361143250,1747303840320,-180.729,0.00011569,2]
[361143252,1747303840329,-150.072,0.00011569,2]
[361143254,1747303840339,-150.08,0.00011569,2]
[361143256,1747303840348,-1303.0,0.00011569,2]
[361143258,1747303840358,-799.0,0.00011569,2]
[361143260,1747303840367,-4035.0,0.00011569,2]
[361143262,1747303840376,-1415.19,0.00011569,2]
[361143264,1747303840385,-154.0,0.00011569,2]
[361143266,1747303840394,-425.941,0.00011569,2]
[361143268,1747303840403,-402.19235016,0.00011634,2]
[361143270,1747303840413,-400.0,0.00011634,2]
[361143272,1747303840422,-540.53346781,0.00011634,2]
[361143274,1747303840431,-400.0,0.00011634,2]
[361143276,1747303840441,-400.0,0.00011634,2]
[361143278,1747303840450,-513.04859197,0.00011634,2]
[361143280,1747303840459,-400.0,0.00011634,2]
[361143282,1747303840471,-400.0,0.00011634,2]
[361143284,1747303840481,-400.0,0.00011634,2]
[361143286,1747303840491,-513.7381443,0.00011634,2]
[361143288,1747303840500,-400.0,0.00011634,2]
[361143290,1747303840509,-489.78345832,0.00011634,2]
[361143292,1747303840519,-400.0,0.00011634,2]
[361143294,1747303840528,-499.40560064,0.00011634,2]
[361143296,1747303840537,-410.23548539,0.00011634,2]
[361143298,1747303840546,-400.0,0.00011634,2]
[361143300,1747303840556,-400.0,0.00011634,2]
[361143302,1747303840565,-400.0,0.00011634,2]
[361143304,1747303840576,-372.48997886,0.00011634,2]
[361143305,1747303840585,-400.0,0.00011634,2]
[361143306,1747303840595,-402.67312923,0.00011634,2]
[361143307,1747303840604,-400.0,0.00011634,2]
[361143308,1747303840613,-400.0,0.00011634,2]
[361143309,1747303840623,-400.0,0.00011634,2]
[361143310,1747303840632,-545.42265298,0.00011634,2]
[361143311,1747303840642,-400.0,0.00011634,2]
[361143312,1747303840651,-204.10799356,0.00011634,2]
[361143313,1747303840660,-400.0,0.00011634,2]
[361143314,1747303840670,-400.0,0.00011634,2]
[361143315,1747303840679,-212.83537644,0.00011634,2]
[361143317,1747303840689,-400.0,0.00011634,2]
[361143319,1747303840698,-400.0,0.00011634,2]
[361143321,1747303840708,-200.0,0.00011634,2]
[361143323,1747303840718,-200.0,0.00011634,2]
[361143325,1747303840731,-218.13582907,0.00011634,2]
[361143327,1747303840741,-275.24998616,0.00011634,2]
[361143329,1747303840750,-400.0,0.00011634,2]
[361143331,1747303840759,-400.0,0.00011634,2]
[361143333,1747303840769,-400.0,0.00011634,2]
[361143335,1747303840779,-400.0,0.00011634,2]
[361143338,1747303840792,-400.0,0.00011634,2]
[361143339,1747303840803,-400.0,0.00011634,2]
[361143342,1747303840813,-400.0,0.00011634,2]
[361143343,1747303840823,-188.29141313,0.00011634,2]
[361143346,1747303840832,-400.0,0.00011634,2]
[361143348,1747303840842,-400.0,0.00011634,2]
[361143350,1747303840851,-466.82180475,0.00011634,2]
[361143352,1747303840861,-400.0,0.00011634,2]
[361143354,1747303840871,-400.0,0.00011634,2]
[361143356,1747303840881,-400.0,0.00011634,2]
[361143358,1747303840891,-400.0,0.00011634,2]
[361143360,1747303840901,-400.0,0.00011634,2]
[361143362,1747303840910,-400.0,0.00011634,2]
[361143364,1747303840920,-413.62548243,0.00011634,2]
[361143366,1747303840929,-229.32143757,0.00011634,2]
[361143368,1747303840940,-400.0,0.00011634,2]
[361143370,1747303840949,-400.0,0.00011634,2]
[361143372,1747303840959,-400.0,0.00011634,2]
[361143374,1747303840970,-560.86,0.00011634,2]
[361143376,1747303840979,-268.98562119,0.00011634,2]
[361143378,1747303840989,-400.0,0.00011634,2]
[361143380,1747303840999,-410.22567691,0.00011634,2]
[361143382,1747303841010,-400.0,0.00011634,2]
[361143384,1747303841019,-400.0,0.00011634,2]
[361143386,1747303841028,-400.0,0.00011634,2]
[361143389,1747303841037,-400.0,0.00011634,2]
[361143391,1747303841047,-506.84875953,0.00011634,2]
[361143393,1747303841057,-400.0,0.00011634,2]
[361143395,1747303841066,-400.0,0.00011634,2]
[361143397,1747303841075,-400.0,0.00011634,2]
[361143399,1747303841086,-400.0,0.00011634,2]
[361143401,1747303841095,-415.5755871,0.00011634,2]
[361143403,1747303841105,-400.0,0.00011634,2]
[361143405,1747303841114,-400.0,0.00011634,2]
[361143407,1747303841124,-400.0,0.00011634,2]
[361143409,1747303841134,-175.08853,0.00011634,2]
[361143411,1747303841143,-878.95,0.00011634,2]
[361143413,1747303841153,-402.51522498,0.00011634,2]
[361143415,1747303841162,-400.0,0.00011634,2]
[361143417,1747303841172,-400.0,0.00011634,2]
[361143419,1747303841182,-400.0,0.00011634,2]
[361143421,1747303841194,-403.01852928,0.00011634,2]
[361143423,1747303841203,-400.0,0.00011634,2]
[361143425,1747303841213,-400.0,0.00011634,2]
[361143427,1747303841222,-400.0,0.00011634,2]
[361143429,1747303841231,-415.63263079,0.00011634,2]
[361143431,1747303841240,-400.0,0.00011634,2]
[361143433,1747303841250,-400.0,0.00011634,2]
[361143435,1747303841259,-405.45097831,0.00011634,2]
[361143437,1747303841269,-406.44205927,0.00011634,2]
[361143439,1747303841279,-400.0,0.00011634,2]
[361143441,1747303841289,-404.18333231,0.00011634,2]
[361143443,1747303841298,-400.0,0.00011634,2]
[361143445,1747303841308,-400.0,0.00011634,2]
[361143447,1747303841317,-551.96,0.00011634,2]
[361143449,1747303841327,-404.55484109,0.00011634,2]
[361143451,1747303841337,-407.23673539,0.00011634,2]
[361143453,1747303841347,-400.0,0.00011634,2]
[361143455,1747303841356,-559.84,0.00011634,2]
[361143458,1747303841366,-400.0,0.00011634,2]
[361143460,1747303841376,-400.0,0.00011634,2]
[361143461,1747303841385,-400.0,0.00011634,2]
[361143464,1747303841395,-411.13275675,0.00011634,2]
[361143466,1747303841405,-490.0,0.00011634,2]
[361143467,1747303841414,-400.0,0.00011634,2]
[361143469,1747303841424,-400.0,0.00011634,2]
[361143471,1747303841435,-400.0,0.00011634,2]
[361143474,1747303841445,-400.0,0.00011634,2]
[361143475,1747303841455,-400.0,0.00011634,2]
[361143477,1747303841465,-400.0,0.00011634,2]
[361143480,1747303841475,-400.0,0.00011634,2]
[361143482,1747303841486,-522.35889221,0.00011634,2]
[361143484,1747303841495,-665.49,0.00011634,2]
[361143486,1747303841504,-400.0,0.00011634,2]
[361143488,1747303841514,-605.59,0.00011634,2]
[361143490,1747303841523,-400.0,0.00011634,2]
[361143492,1747303841533,-400.0,0.00011634,2]
[361143494,1747303841542,-320.61383285,0.00011634,2]
[361143495,1747303841551,-400.0,0.00011634,2]
[361143498,1747303841561,-400.0,0.00011634,2]
[361143500,1747303841570,-400.0,0.00011634,2]
[361143502,1747303841581,-400.0,0.00011634,2]
[361143503,1747303841590,-400.0,0.00011634,2]
[361143506,1747303841600,-400.0,0.00011634,2]
[361143508,1747303841609,-400.0,0.00011634,2]
[361143510,1747303841620,-359.75021874,0.00011634,2]
[361143512,1747303841629,-450.08,0.00011634,2]
[361143514,1747303841638,-400.0,0.00011634,2]
[361143516,1747303841648,-400.0,0.00011634,2]
[361143518,1747303841657,-400.0,0.00011634,2]
[361143520,1747303841667,-400.0,0.00011634,2]
[361143522,1747303841676,-400.0,0.00011634,2]
[361143524,1747303841686,-1211.76,0.00011634,2]
[361143526,1747303841696,-400.0,0.00011634,2]
[361143528,1747303841705,-541.52610515,0.00011634,2]
[361143530,1747303841715,-435.63163446,0.00011634,2]
[361143532,1747303841728,-400.0,0.00011634,2]
[361143534,1747303841738,-400.0,0.00011634,2]
[361143536,1747303841747,-400.0,0.00011634,2]
[361143538,1747303841756,-400.0,0.00011634,2]
[361143540,1747303841767,-400.0,0.00011634,2]
[361143542,1747303841776,-400.0,0.00011634,2]
[361143544,1747303841785,-572.36,0.00011634,2]
[361143546,1747303841795,-400.0,0.00011634,2]
[361143548,1747303841805,-817.83,0.00011634,2]
[361143550,1747303841815,-400.0,0.00011634,2]
[361143552,1747303841824,-400.0,0.00011634,2]
[361143554,1747303841834,-400.0,0.00011634,2]
[361143556,1747303841844,-400.0,0.00011634,2]
[361143558,1747303841854,-400.0,0.00011634,2]
[361143560,1747303841867,-400.0,0.00011634,2]
[361143563,1747303841877,-400.0,0.00011634,2]
[361143564,1747303841888,-400.0,0.00011634,2]
[361143567,1747303841898,-1583.86,0.00011634,2]
[361143569,1747303841908,-171.28398881,0.00011634,2]
[361143621,1747303842399,-228.71601119,0.00011634,2]
[361143623,1747303842408,-400.0,0.00011634,2]
[361143625,1747303842418,-400.0,0.00011634,2]
[361143627,1747303842427,-446.01,0.00011634,2]
[361143629,1747303842438,-400.0,0.00011634,2]
[361143631,1747303842447,-400.0,0.00011634,2]
[361143633,1747303842457,-400.0,0.00011634,2]
[361143635,1747303842467,-400.0,0.00011634,2]
[361143637,1747303842477,-400.0,0.00011634,2]
[361143639,1747303842488,-448.22,0.00011634,2]
[361143641,1747303842497,-400.0,0.00011634,2]
[361143643,1747303842506,-255.17045747,0.00011634,2]
[361143645,1747303842516,-400.0,0.00011634,2]
[361143648,1747303842525,-400.0,0.00011634,2]
[361143650,1747303842535,-400.0,0.00011634,2]
[361143652,1747303842545,-400.0,0.00011634,2]
[361143654,1747303842554,-400.0,0.00011634,2]
[361143656,1747303842564,-400.0,0.00011634,2]
[361143658,1747303842574,-400.0,0.00011634,2]
[361143660,1747303842584,-400.0,0.00011634,2]
[361143663,1747303842593,-400.0,0.00011634,2]
[361143665,1747303842603,-400.0,0.00011634,2]
[361143668,1747303842613,-400.0,0.00011634,2]
[361143670,1747303842622,-400.0,0.00011634,2]
[361143673,1747303842632,-458.76,0.00011634,2]
[361143675,1747303842641,-400.0,0.00011634,2]
[361143678,1747303842651,-490.84,0.00011634,2]
[361143680,1747303842660,-400.0,0.00011634,2]
[361143682,1747303842670,-400.0,0.00011634,2]
[361143684,1747303842679,-500.0,0.00011634,2]
[361143686,1747303842688,-400.0,0.00011634,2]
[361143689,1747303842698,-400.0,0.00011634,2]
[361143691,1747303842708,-400.0,0.00011634,2]
[361143693,1747303842718,-400.0,0.00011634,2]
[361143695,1747303842730,-400.0,0.00011634,2]
[361143697,1747303842740,-400.0,0.00011634,2]
[361143699,1747303842750,-400.0,0.00011634,2]
[361143701,1747303842759,-400.0,0.00011634,2]
[361143703,1747303842768,-400.0,0.00011634,2]
[361143705,1747303842778,-400.0,0.00011634,2]
[361143708,1747303842787,-400.0,0.00011634,2]
[361143711,1747303842798,-451.42,0.00011634,2]
[361143714,1747303842809,-400.0,0.00011634,2]
[361143717,1747303842819,-400.0,0.00011634,2]
[361143719,1747303842829,-400.0,0.00011634,2]
[361143721,1747303842840,-400.0,0.00011634,2]
[361143723,1747303842850,-400.0,0.00011634,2]
[361143726,1747303842860,-400.0,0.00011634,2]
[361143728,1747303842869,-400.0,0.00011634,2]
[361143732,1747303842879,-400.0,0.00011634,2]
[361143734,1747303842889,-400.0,0.00011634,2]
[361143736,1747303842899,-120.86353134,0.00011634,2]
[361143739,1747303842921,-279.13646866,0.00011634,2]
[361143741,1747303842931,-400.0,0.00011634,2]
[361143742,1747303842941,-400.0,0.00011634,2]
[361143743,1747303842951,-400.0,0.00011634,2]
[361143744,1747303842961,-400.0,0.00011634,2]
[361143745,1747303842971,-400.0,0.00011634,2]
[361143746,1747303842982,-400.0,0.00011634,2]
[361143748,1747303842992,-400.0,0.00011634,2]
[361143749,1747303843002,-400.0,0.00011634,2]
[361143751,1747303843012,-263.66967837,0.00011634,2]
[361143798,1747303843452,150.0,0.00013,5]
[361143827,1747303843637,-458.5138,0.00011534,2]
[361143829,1747303843646,-136.33032163,0.00011634,2]
[361143831,1747303843656,-413.35828654,0.00011634,2]
[361143833,1747303843665,-400.0,0.00011634,2]
[361143835,1747303843674,-400.0,0.00011634,2]
[361143837,1747303843684,-400.0,0.00011634,2]
[361143839,1747303843694,-400.0,0.00011634,2]
[361143842,1747303843704,-400.0,0.00011634,2]
[361143844,1747303843715,-411.3766473,0.00011634,2]
[361143846,1747303843729,-400.0,0.00011634,2]
[361143848,1747303843739,-190.97899373,0.00011634,2]
[361143858,1747303843842,-212.90192759,0.00011634,2]
[361143861,1747303843852,-400.0,0.00011634,2]
[361143863,1747303843862,-400.0,0.00011634,2]
[361143864,1747303843871,-191.29963351,0.00011634,2]
[361144032,1747303845683,-400.0,0.00011534,2]
[361144034,1747303845695,-400.0,0.00011534,2]
[361144036,1747303845704,-400.0,0.00011534,2]
[361144038,1747303845714,-400.0,0.00011534,2]
[361144040,1747303845729,-24.60049396,0.00011534,2]
[361144054,1747303845861,-375.39950604,0.00011534,2]
[361144056,1747303845870,-158.03996376,0.00011634,2]
[361144084,1747303846158,-343.68943434,0.00011379,2]
[361144087,1747303846172,-56.31056566,0.00011379,2]
[361144089,1747303846181,-400.0,0.00011534,2]
[361144091,1747303846191,-50.66040273,0.00011634,2]
[361144092,1747303846201,-400.0,0.00011634,2]
[361144095,1747303846211,-400.0,0.00011634,2]
[361144096,1747303846223,-404.24354569,0.00011634,2]
[361144098,1747303846232,-400.0,0.00011634,2]
[361144100,1747303846242,-400.0,0.00011634,2]
[361144102,1747303846253,-400.0,0.00011634,2]
[361144104,1747303846262,-400.0,0.00011634,2]
[361144106,1747303846271,-211.39575277,0.00011634,2]
[361144687,1747303991197,257.8,0.00021945,30]
[361144688,1747304112329,992.23,8.794e-05,2]
[361144690,1747304245807,-450.0,0.0001,2]
[361144691,1747304571588,150.0,0.00010665,7]
[361144693,1747304836283,205.0,9.8e-05,2]
[361144711,1747305031918,-254.01,0.00010356,2]
[361144712,1747305031973,-256.87480162,0.00010356,2]
[361144713,1747305032028,-293.20519838,0.00010356,2]
[361144714,1747305032037,-6.79480162,0.0001041,2]
[361144715,1747305032192,-243.20519838,0.0001041,2]
[361144716,1747305032202,-146.20807362,0.00010622,2]
[361145254,1747305038196,-141.78192638,0.00010622,2]
[361145257,1747305038206,-154.29226762,0.00010659,2]
[361145259,1747305038218,-1097.86773238,0.00010659,2]
[361145261,1747305038227,-196.43,0.00010664,2]
[361145263,1747305038237,-86.67148903,0.00010681,2]
[361145267,1747305038272,-76.42851097,0.00010681,2]
[361145269,1747305038281,-1000.0,0.00010722,2]
[361145271,1747305038290,-922.95,0.00010743,2]
[361145272,1747305038299,-154.1668133,0.00010957,2]
[361145274,1747305038311,-145.8331867,0.00010957,2]
[361145276,1747305038321,-1200.0,0.00010957,2]
[361145278,1747305038331,-170.520578,0.00010958,2]
[361145280,1747305038340,-2448.930506,0.00010958,2]
[361145282,1747305038349,-271.858849,0.00010958,2]
[361145284,1747305038358,-150.0,0.00010999,2]
[361145286,1747305038367,-26671.8568803,0.00011,2]
[361145288,1747305038379,-9545.86031978,0.00011,2]
[361145291,1747305038397,-1419.50043972,0.00011,2]
[361145293,1747305038416,-583.82715935,0.00011,2]
[361145441,1747305040030,-14177.85064316,0.00011,2]
[361145473,1747305040342,-1020.036,0.00011,2]
[361145478,1747305040383,-6718.52060787,0.00011,2]
[361145480,1747305040392,-9561.01221433,0.00011029,2]
[361145482,1747305040402,-992.23,0.00011058,2]
[361145484,1747305040412,-352.7,0.000111,2]
[361145486,1747305040421,-150.0,0.000111,2]
[361145488,1747305040430,-2448.930506,0.00011114,2]
[361145490,1747305040440,-271.858849,0.00011114,2]
[361145492,1747305040450,-2448.930506,0.00011116,2]
[361145494,1747305040460,-271.858849,0.00011116,2]
[361145496,1747305040469,-352.99,0.000112,2]
[361145498,1747305040479,-150.0,0.000112,2]
[361145500,1747305040487,-150.0,0.000112,2]
[361145502,1747305040496,-325.28,0.000112,2]